fUST/lending_fUST_20240818
["ID","MTS","AMOUNT","RATE_DAILY","PERIOD"]
[335214659,1723985440946,-500.0,0.00016438,2]
[335214660,1723985440956,-500.0,0.00016438,2]
[335214661,1723985440965,-1336.64,0.00016438,2]
[335214662,1723985440974,-500.0,0.00016438,2]
[335214663,1723985440984,-500.0,0.00016438,2]
[335214664,1723985440993,-500.0,0.00016438,2]
[335214665,1723985441002,-500.0,0.00016438,2]
[335214666,1723985441012,-500.0,0.00016438,2]
[335214667,1723985441021,-500.0,0.00016438,2]
[335214668,1723985441030,-679.8,0.00016438,2]
[335214669,1723985441039,-598.34,0.00016438,2]
[335214670,1723985441049,-500.0,0.00016438,2]
[335214671,1723985441059,-500.0,0.00016438,2]
[335214672,1723985441068,-514.57750072,0.00016438,2]
[335214673,1723985441078,-500.0,0.00016438,2]
[335214674,1723985441087,-500.0,0.00016438,2]
[335214675,1723985441096,-952.18,0.00016438,2]
[335214676,1723985441107,-500.0,0.00016438,2]
[335214677,1723985441116,-683.21,0.00016438,2]
[335214678,1723985441125,-500.0,0.00016438,2]
[335214679,1723985441134,-500.0,0.00016438,2]
[335214680,1723985441144,-552.58696288,0.00016438,2]
[335214681,1723985441153,-558.85,0.00016438,2]
[335214682,1723985441162,-500.0,0.00016438,2]
[335214683,1723985441172,-692.1,0.00016438,2]
[335214684,1723985441181,-500.0,0.00016438,2]
[335214685,1723985441190,-500.0,0.00016438,2]
[335214686,1723985441199,-500.0,0.00016438,2]
[335214687,1723985441209,-634.02,0.00016438,2]
[335214688,1723985441218,-500.0,0.00016438,2]
[335214689,1723985441227,-752.2,0.00016438,2]
[335214690,1723985441236,-500.0,0.00016438,2]
[335214691,1723985441246,-500.0,0.00016438,2]
[335214692,1723985441255,-502.1101804,0.00016438,2]
[335214693,1723985441264,-500.0,0.00016438,2]
[335214694,1723985441274,-500.0,0.00016438,2]
[335214695,1723985441283,-500.0,0.00016438,2]
[335214696,1723985441292,-376.41422012,0.00016438,2]
[335214697,1723985441304,-505.51322599,0.00016438,2]
[335214698,1723985441314,-500.0,0.00016438,2]
[335214699,1723985441324,-602.37,0.00016438,2]
[335214700,1723985441333,-508.26415308,0.00016438,2]
[335214701,1723985441342,-644.57777291,0.00016438,2]
[335214702,1723985441352,-500.0,0.00016438,2]
[335214703,1723985441361,-762.86,0.00016438,2]
[335214704,1723985441371,-379.65994937,0.00016438,2]
[335214705,1723985441380,-500.0,0.00016438,2]
[335214706,1723985441390,-500.0,0.00016438,2]
[335214707,1723985441399,-500.0,0.00016438,2]
[335214708,1723985441408,-500.0,0.00016438,2]
[335214709,1723985441418,-500.0,0.00016438,2]
[335214710,1723985441427,-500.0,0.00016438,2]
[335214711,1723985441436,-500.0,0.00016438,2]
[335214712,1723985441445,-500.0,0.00016438,2]
[335214713,1723985441455,-500.0,0.00016438,2]
[335214714,1723985441464,-500.0,0.00016438,2]
[335214715,1723985441474,-500.0,0.00016438,2]
[335214716,1723985441484,-500.0,0.00016438,2]
[335214717,1723985441494,-500.0,0.00016438,2]
[335214718,1723985441503,-672.14,0.00016438,2]
[335214719,1723985441513,-512.94873422,0.00016438,2]
[335214720,1723985441525,-500.0,0.00016438,2]
[335214721,1723985441534,-500.0,0.00016438,2]
[335214722,1723985441544,-500.0,0.00016438,2]
[335214723,1723985441553,-502.35481281,0.00016438,2]
[335214724,1723985441563,-500.0,0.00016438,2]
[335214725,1723985441572,-500.0,0.00016438,2]
[335214726,1723985441582,-500.0,0.00016438,2]
[335214727,1723985441591,-501.55,0.00016438,2]
[335214728,1723985441603,-500.0,0.00016438,2]
[335214729,1723985441612,-500.0,0.00016438,2]
[335214730,1723985441621,-500.0,0.00016438,2]
[335214731,1723985441631,-500.0,0.00016438,2]
[335214732,1723985441640,-500.0,0.00016438,2]
[335214733,1723985441650,-500.0,0.00016438,2]
[335214734,1723985441660,-500.0,0.00016438,2]
[335214735,1723985441669,-500.0,0.00016438,2]
[335214736,1723985441679,-500.0,0.00016438,2]
[335214737,1723985441688,-500.0,0.00016438,2]
[335214738,1723985441697,-500.0,0.00016438,2]
[335214739,1723985441706,-508.99906591,0.00016438,2]
[335214740,1723985441717,-151.0,0.00016438,2]
[335214741,1723985441727,-600.04919493,0.00016438,2]
[335214742,1723985441736,-500.0,0.00016438,2]
[335214743,1723985441746,-500.0,0.00016438,2]
[335214744,1723985441755,-500.0,0.00016438,2]
[335214745,1723985441764,-500.0,0.00016438,2]
[335214746,1723985441773,-500.0,0.00016438,2]
[335214747,1723985441783,-500.0,0.00016438,2]
[335214748,1723985441792,-500.0,0.00016438,2]
[335214749,1723985441801,-505.21419175,0.00016438,2]
[335214750,1723985441812,-500.0,0.00016438,2]
[335214751,1723985441821,-530.35646287,0.00016438,2]
[335214752,1723985441831,-500.0,0.00016438,2]
[335214753,1723985441840,-500.0,0.00016438,2]
[335214754,1723985441849,-981.48,0.00016438,2]
[335214755,1723985441859,-647.0,0.00016438,2]
[335214756,1723985441868,-500.0,0.00016438,2]
[335214757,1723985441878,-750.71,0.00016438,2]
[335214758,1723985441887,-500.0,0.00016438,2]
[335214759,1723985441897,-500.0,0.00016438,2]
[335214760,1723985441906,-500.0,0.00016438,2]
[335214761,1723985441915,-500.0,0.00016438,2]
[335214762,1723985441924,-500.0,0.00016438,2]
[335214763,1723985441934,-500.0,0.00016438,2]
[335214764,1723985441943,-525.76,0.00016438,2]
[335214765,1723985441952,-500.0,0.00016438,2]
[335214766,1723985441962,-500.0,0.00016438,2]
[335214767,1723985441973,-533.66,0.00016438,2]
[335214768,1723985441983,-500.0,0.00016438,2]
[335214769,1723985441992,-500.0,0.00016438,2]
[335214770,1723985442001,-500.0,0.00016438,2]
[335214771,1723985442010,-500.0,0.00016438,2]
[335214772,1723985442020,-500.0,0.00016438,2]
[335214773,1723985442029,-507.80802781,0.00016438,2]
[335214774,1723985442038,-500.0,0.00016438,2]
[335214775,1723985442047,-1000.0,0.00016438,2]
[335214776,1723985442057,-500.0,0.00016438,2]
[335214777,1723985442067,-500.0,0.00016438,2]
[335214778,1723985442077,-500.0,0.00016438,2]
[335214779,1723985442086,-500.0,0.00016438,2]
[335214780,1723985442095,-309.0108856,0.00016438,2]
[335214781,1723985442105,-779.83,0.00016438,2]
[335214782,1723985442114,-500.0,0.00016438,2]
[335214783,1723985442124,-466.80532712,0.00016438,2]
[335214784,1723985442133,-500.0,0.00016438,2]
[335214785,1723985442142,-500.0,0.00016438,2]
[335214786,1723985442152,-660.2,0.00016438,2]
[335214787,1723985442161,-500.0,0.00016438,2]
[335214788,1723985442171,-500.0,0.00016438,2]
[335214789,1723985442180,-500.0,0.00016438,2]
[335214790,1723985442190,-500.0,0.00016438,2]
[335214791,1723985442199,-500.0,0.00016438,2]
[335214792,1723985442209,-500.0,0.00016438,2]
[335214793,1723985442218,-500.0,0.00016438,2]
[335214794,1723985442228,-500.0,0.00016438,2]
[335214795,1723985442237,-167.27726661,0.00016438,2]
[335214796,1723985442246,-500.0,0.00016438,2]
[335214797,1723985442255,-415.53294663,0.00016438,2]
[335214798,1723985442265,-500.0,0.00016438,2]
[335214799,1723985442274,-500.0,0.00016438,2]
[335214800,1723985442284,-500.0,0.00016438,2]
[335214801,1723985442294,-500.0,0.00016438,2]
[335214802,1723985442305,-500.0,0.00016438,2]
[335214803,1723985442314,-500.0,0.00016438,2]
[335214804,1723985442433,-500.0,0.00016438,2]
[335214805,1723985442443,-501.02611279,0.00016438,2]
[335214806,1723985442452,-506.83744732,0.00016438,2]
[335214807,1723985442462,-417.33335301,0.00016438,2]
[335214808,1723985442472,-500.0,0.00016438,2]
[335214809,1723985442481,-500.0,0.00016438,2]
[335214810,1723985442491,-502.75146287,0.00016438,2]
[335214811,1723985442503,-721.88,0.00016438,2]
[335214812,1723985442512,-500.0,0.00016438,2]
[335214813,1723985442525,-500.0,0.00016438,2]
[335214814,1723985442535,-500.0,0.00016438,2]
[335214815,1723985442544,-500.0,0.00016438,2]
[335214816,1723985442554,-500.0,0.00016438,2]
[335214817,1723985442565,-500.0,0.00016438,2]
[335214818,1723985442574,-500.0,0.00016438,2]
[335214819,1723985442583,-500.0,0.00016438,2]
[335214820,1723985442593,-500.0,0.00016438,2]
[335214821,1723985442604,-500.0,0.00016438,2]
[335214822,1723985442613,-500.0,0.00016438,2]
[335214823,1723985442624,-500.0,0.00016438,2]
[335214824,1723985442633,-500.0,0.00016438,2]
[335214825,1723985442642,-500.0,0.00016438,2]
[335214826,1723985442652,-500.0,0.00016438,2]
[335214827,1723985442662,-500.0,0.00016438,2]
[335214828,1723985442672,-500.0,0.00016438,2]
[335214829,1723985442682,-352.36,0.00016438,2]
[335214830,1723985442692,-500.0,0.00016438,2]
[335214831,1723985442701,-500.0,0.00016438,2]
[335214832,1723985442711,-500.0,0.00016438,2]
[335214833,1723985442720,-500.0,0.00016438,2]
[335214834,1723985442730,-500.0,0.00016438,2]
[335214835,1723985442739,-515.95,0.00016438,2]
[335214836,1723985442748,-619.99,0.00016438,2]
[335214837,1723985442758,-617.92,0.00016438,2]
[335214838,1723985442767,-500.0,0.00016438,2]
[335214839,1723985442778,-500.0,0.00016438,2]
[335214840,1723985442787,-505.3599567,0.00016438,2]
[335214841,1723985442797,-500.0,0.00016438,2]
[335214842,1723985442808,-500.0,0.00016438,2]
[335214843,1723985442817,-500.0,0.00016438,2]
[335214844,1723985442827,-500.0,0.00016438,2]
[335214845,1723985442836,-500.0,0.00016438,2]
[335214846,1723985442846,-1230.96,0.00016438,2]
[335214847,1723985442856,-500.0,0.00016438,2]
[335214848,1723985442865,-329.41772764,0.00016438,2]
[335214849,1723985442874,-1015.01,0.00016438,2]
[335214850,1723985442884,-150.0,0.00016438,2]
[335214851,1723985442893,-500.0,0.00016438,2]
[335214852,1723985442902,-500.0,0.00016438,2]
[335214853,1723985442913,-500.0,0.00016438,2]
[335214854,1723985442922,-500.0,0.00016438,2]
[335214855,1723985442932,-500.0,0.00016438,2]
[335214856,1723985442941,-500.0,0.00016438,2]
[335214857,1723985442951,-500.0,0.00016438,2]
[335214858,1723985442962,-500.0,0.00016438,2]
[335214860,1723985442972,-474.35425249,0.00016438,2]
[335214862,1723985442982,-1191.2,0.00016438,2]
[335214864,1723985442992,-500.0,0.00016438,2]
[335214866,1723985443002,-500.0,0.00016438,2]
[335214867,1723985443011,-500.0,0.00016438,2]
[335214869,1723985443021,-500.0,0.00016438,2]
[335214871,1723985443031,-501.6854391,0.00016438,2]
[335214873,1723985443040,-500.0,0.00016438,2]
[335214875,1723985443050,-1077.19,0.00016438,2]
[335214876,1723985443061,-500.0,0.00016438,2]
[335214877,1723985443071,-500.0,0.00016438,2]
[335214878,1723985443081,-500.0,0.00016438,2]
[335214879,1723985443091,-500.0,0.00016438,2]
[335214880,1723985443100,-500.0,0.00016438,2]
[335214881,1723985443110,-500.0,0.00016438,2]
[335214883,1723985443119,-228.13925843,0.00016438,2]
[335214885,1723985443130,-500.0,0.00016438,2]
[335214887,1723985443139,-791.35,0.00016438,2]
[335214889,1723985443149,-500.0,0.00016438,2]
[335214891,1723985443159,-727.72,0.00016438,2]
[335214893,1723985443169,-500.0,0.00016438,2]
[335214895,1723985443179,-500.0,0.00016438,2]
[335214897,1723985443188,-500.0,0.00016438,2]
[335214899,1723985443197,-500.0,0.00016438,2]
[335214901,1723985443208,-673.84,0.00016438,2]
[335214903,1723985443217,-418.11879524,0.00016438,2]
[335214905,1723985443227,-500.0,0.00016438,2]
[335214907,1723985443237,-500.0,0.00016438,2]
[335214909,1723985443246,-500.0,0.00016438,2]
[335214911,1723985443256,-500.0,0.00016438,2]
[335214913,1723985443266,-500.0,0.00016438,2]
[335214915,1723985443275,-1296.64,0.00016438,2]
[335214917,1723985443284,-500.0,0.00016438,2]
[335214918,1723985443293,-589.17,0.00016438,2]
[335214919,1723985443302,-500.0,0.00016438,2]
[335214920,1723985443313,-1003.71,0.00016438,2]
[335214921,1723985443322,-500.0,0.00016438,2]
[335214922,1723985443332,-500.0,0.00016438,2]
[335214923,1723985443341,-3928.39,0.00016438,2]
[335214924,1723985443350,-200.0,0.00016438,2]
[335214925,1723985443359,-500.0,0.00016438,2]
[335214926,1723985443369,-500.0,0.00016438,2]
[335214927,1723985443378,-500.0,0.00016438,2]
[335214928,1723985443388,-500.0,0.00016438,2]
[335214929,1723985443398,-500.0,0.00016438,2]
[335214931,1723985443408,-2005.0,0.00016438,10]
[335214933,1723985443418,-687.07,0.00016438,2]
[335214935,1723985443428,-500.0,0.00016438,2]
[335214937,1723985443439,-506.76095318,0.00016438,2]
[335214939,1723985443449,-500.0,0.00016438,2]
[335214941,1723985443459,-508.39620964,0.00016438,2]
[335214943,1723985443468,-1205.78,0.00016438,2]
[335214945,1723985443478,-500.0,0.00016438,2]
[335214947,1723985443488,-500.0,0.00016438,2]
[335214949,1723985443497,-1167.57,0.00016438,2]
[335214951,1723985443508,-500.0,0.00016438,2]
[335214952,1723985443524,-500.0,0.00016438,2]
[335214953,1723985443536,-500.0,0.00016438,2]
[335214954,1723985443546,-454.33912668,0.00016438,2]
[335214955,1723985443556,-500.0,0.00016438,2]
[335214956,1723985443567,-515.67634002,0.00016438,2]
[335214957,1723985443577,-506.64087137,0.00016438,2]
[335214958,1723985443587,-507.97641047,0.00016438,2]
[335214959,1723985443598,-500.0,0.00016438,2]
[335214960,1723985443609,-672.22,0.00016438,2]
[335214961,1723985443618,-500.0,0.00016438,2]
[335214962,1723985443628,-500.0,0.00016438,2]
[335214963,1723985443638,-500.0,0.00016438,2]
[335214964,1723985443647,-500.0,0.00016438,2]
[335214965,1723985443656,-994.75,0.00016438,2]
[335214966,1723985443667,-500.0,0.00016438,2]
[335214967,1723985443677,-533.22,0.00016438,2]
[335214968,1723985443686,-500.0,0.00016438,2]
[335214969,1723985443696,-500.0,0.00016438,2]
[335214970,1723985443706,-500.0,0.00016438,2]
[335214971,1723985443715,-500.0,0.00016438,2]
[335214972,1723985443724,-388.24660019,0.00016438,2]
[335214973,1723985443734,-500.0,0.00016438,2]
[335214974,1723985443745,-500.0,0.00016438,2]
[335214975,1723985443755,-500.0,0.00016438,2]
[335214976,1723985443764,-506.40033661,0.00016438,2]
[335214977,1723985443774,-500.0,0.00016438,2]
[335214978,1723985443784,-500.0,0.00016438,2]
[335214979,1723985443794,-500.0,0.00016438,2]
[335214980,1723985443804,-500.0,0.00016438,2]
[335214981,1723985443815,-500.0,0.00016438,2]
[335214982,1723985443824,-500.0,0.00016438,2]
[335214983,1723985443833,-565.50512077,0.00016438,2]
[335214984,1723985443842,-500.0,0.00016438,2]
[335214985,1723985443851,-500.0,0.00016438,2]
[335214986,1723985443861,-607.54,0.00016438,2]
[335214987,1723985443871,-525.36014816,0.00016438,2]
[335214988,1723985443881,-500.0,0.00016438,2]
[335214989,1723985443892,-500.0,0.00016438,2]
[335214990,1723985443901,-500.0,0.00016438,2]
[335214991,1723985443911,-1373.46,0.00016438,2]
[335214992,1723985443921,-500.0,0.00016438,2]
[335214993,1723985443930,-502.45859411,0.00016438,2]
[335214994,1723985443940,-500.0,0.00016438,2]
[335214995,1723985443950,-1679.37,0.00016438,2]
[335214996,1723985443960,-500.0,0.00016438,2]
[335214997,1723985443969,-510.97364611,0.00016438,2]
[335214998,1723985443979,-500.0,0.00016438,2]
[335214999,1723985443988,-685.7,0.00016438,2]
[335215000,1723985443997,-1768.53,0.00016438,2]
[335215001,1723985444007,-503.76485255,0.00016438,2]
[335215002,1723985444016,-500.0,0.00016438,2]
[335215003,1723985444025,-500.0,0.00016438,2]
[335215004,1723985444035,-785.48,0.00016438,2]
[335215005,1723985444044,-500.0,0.00016438,2]
[335215006,1723985444054,-500.0,0.00016438,2]
[335215007,1723985444064,-500.0,0.00016438,2]
[335215008,1723985444073,-500.0,0.00016438,2]
[335215009,1723985444083,-391.39034035,0.00016438,2]
[335215010,1723985444092,-508.36,0.00016438,2]
[335215011,1723985444102,-500.0,0.00016438,2]
[335215012,1723985444112,-500.0,0.00016438,2]
[335215013,1723985444121,-500.0,0.00016438,2]
[335215014,1723985444131,-500.0,0.00016438,2]
[335215015,1723985444141,-500.0,0.00016438,2]
[335215016,1723985444151,-2842.58,0.00016438,2]
[335215017,1723985444160,-500.0,0.00016438,2]
[335215018,1723985444170,-151.0,0.00016438,2]
[335215019,1723985444179,-500.0,0.00016438,2]
[335215020,1723985444190,-511.00267424,0.00016438,2]
[335215021,1723985444199,-500.0,0.00016438,2]
[335215022,1723985444209,-500.0,0.00016438,2]
[335215023,1723985444219,-287.390957,0.00016438,2]
[335215024,1723985444228,-517.7936347,0.00016438,2]
[335215025,1723985444238,-1120.95,0.00016438,2]
[335215026,1723985444247,-500.0,0.00016438,2]
[335215027,1723985444257,-500.8022216,0.00016438,2]
[335215028,1723985444266,-840.73,0.00016438,2]
[335215029,1723985444277,-500.0,0.00016438,2]
[335215030,1723985444287,-500.0,0.00016438,2]
[335215031,1723985444297,-500.0,0.00016438,2]
[335215032,1723985444306,-543.53104022,0.00016438,2]
[335215033,1723985444316,-784.62,0.00016438,2]
[335215034,1723985444326,-594.36,0.00016438,2]
[335215035,1723985444336,-501.7969771,0.00016438,2]
[335215036,1723985444345,-503.5090464,0.00016438,2]
[335215037,1723985444355,-500.0,0.00016438,2]
[335215038,1723985444364,-500.0,0.00016438,2]
[335215039,1723985444374,-500.0,0.00016438,2]
[335215040,1723985444383,-554.11,0.00016438,2]
[335215041,1723985444392,-621.87,0.00016438,2]
[335215042,1723985444402,-500.0,0.00016438,2]
[335215043,1723985444412,-500.0,0.00016438,2]
[335215044,1723985444421,-500.0,0.00016438,2]
[335215045,1723985444431,-500.0,0.00016438,2]
[335215046,1723985444441,-942.92,0.00016438,2]
[335215047,1723985444450,-6991.34,0.00016438,2]
[335215048,1723985444459,-1096.87,0.00016438,2]
[335215049,1723985444468,-500.0,0.00016438,2]
[335215050,1723985444478,-500.0,0.00016438,2]
[335215051,1723985444487,-1021.23,0.00016438,2]
[335215052,1723985444496,-522.86101654,0.00016438,2]
[335215053,1723985444505,-500.0,0.00016438,2]
[335215054,1723985444515,-503.19594722,0.00016438,2]
[335215055,1723985444529,-577.12,0.00016438,2]
[335215056,1723985444539,-500.0,0.00016438,2]
[335215057,1723985444549,-500.0,0.00016438,2]
[335215058,1723985444559,-880.81,0.00016438,2]
[335215059,1723985444569,-500.0,0.00016438,2]
[335215060,1723985444579,-500.0,0.00016438,2]
[335215061,1723985444588,-500.0,0.00016438,2]
[335215062,1723985444599,-391.50497632,0.00016438,2]
[335215063,1723985444609,-624.0,0.00016438,2]
[335215064,1723985444619,-500.0,0.00016438,2]
[335215065,1723985444628,-500.0,0.00016438,2]
[335215066,1723985444638,-976.56,0.00016438,2]
[335215067,1723985444647,-500.0,0.00016438,2]
[335215068,1723985444656,-515.55398603,0.00016438,2]
[335215069,1723985444768,-500.0,0.00016438,2]
[335215070,1723985444778,-500.0,0.00016438,2]
[335215071,1723985444787,-500.0,0.00016438,2]
[335215072,1723985444797,-555.73,0.00016438,2]
[335215073,1723985444807,-500.0,0.00016438,2]
[335215074,1723985444816,-500.0,0.00016438,2]
[335215075,1723985444825,-2040.65,0.00016438,2]
[335215076,1723985444835,-1181.06,0.00016438,2]
[335215077,1723985444844,-500.0,0.00016438,2]
[335215078,1723985444853,-768.35,0.00016438,2]
[335215079,1723985444863,-622.16,0.00016438,2]
[335215080,1723985444873,-500.0,0.00016438,2]
[335215081,1723985444882,-2766.47,0.00016438,2]
[335215082,1723985444891,-500.0,0.00016438,2]
[335215083,1723985444900,-511.64450692,0.00016438,2]
[335215084,1723985444910,-500.0,0.00016438,2]
[335215085,1723985444919,-650.79,0.00016438,2]
[335215086,1723985444928,-500.0,0.00016438,2]
[335215087,1723985444937,-500.0,0.00016438,2]
[335215088,1723985444947,-851.44,0.00016438,2]
[335215089,1723985444956,-640.44,0.00016438,2]
[335215090,1723985444965,-500.0,0.00016438,2]
[335215091,1723985444976,-500.0,0.00016438,2]
[335215092,1723985444985,-500.0,0.00016438,2]
[335215093,1723985444994,-500.0,0.00016438,2]
[335215094,1723985445003,-769.5,0.00016438,2]
[335215095,1723985445013,-511.45949116,0.00016438,2]
[335215096,1723985445023,-500.0,0.00016438,2]
[335215097,1723985445033,-500.0,0.00016438,2]
[335215098,1723985445042,-500.0,0.00016438,2]
[335215099,1723985445052,-500.0,0.00016438,2]
[335215100,1723985445063,-916.79,0.00016438,2]
[335215101,1723985445072,-500.0,0.00016438,2]
[335215102,1723985445082,-642.45,0.00016438,2]
[335215103,1723985445091,-500.0,0.00016438,2]
[335215104,1723985445100,-521.18586828,0.00016438,2]
[335215105,1723985445110,-500.0,0.00016438,2]
[335215106,1723985445119,-765.3,0.00016438,2]
[335215107,1723985445128,-699.72,0.00016438,2]
[335215108,1723985445137,-500.0,0.00016438,2]
[335215109,1723985445147,-500.0,0.00016438,2]
[335215110,1723985445157,-500.0,0.00016438,2]
[335215111,1723985445168,-635.5952939,0.00016438,2]
[335215112,1723985445178,-500.0,0.00016438,2]
[335215113,1723985445187,-719.16,0.00016438,2]
[335215114,1723985445198,-500.0,0.00016438,2]
[335215115,1723985445207,-500.0,0.00016438,2]
[335215116,1723985445216,-719.89,0.00016438,2]
[335215117,1723985445226,-500.0,0.00016438,2]
[335215118,1723985445235,-500.0,0.00016438,2]
[335215119,1723985445245,-513.22647486,0.00016438,2]
[335215120,1723985445255,-727.46,0.00016438,2]
[335215121,1723985445264,-542.23948546,0.00016438,2]
[335215122,1723985445274,-334.564121,0.00016438,2]
[335215123,1723985445284,-808.55,0.00016438,2]
[335215124,1723985445293,-334.564121,0.00016438,2]
[335215125,1723985445302,-334.564121,0.00016438,2]
[335215126,1723985445312,-334.564121,0.00016438,2]
[335215127,1723985445322,-500.0,0.00016438,2]
[335215128,1723985445332,-1831.92,0.00016438,2]
[335215129,1723985445342,-665.79,0.00016438,2]
[335215130,1723985445351,-500.0,0.00016438,2]
[335215131,1723985445360,-500.0,0.00016438,2]
[335215132,1723985445370,-500.0,0.00016438,2]
[335215133,1723985445379,-794.52,0.00016438,2]
[335215134,1723985445388,-500.0,0.00016438,2]
[335215135,1723985445397,-495.78922425,0.00016438,2]
[335215136,1723985445406,-1024.25,0.00016438,2]
[335215137,1723985445416,-500.0,0.00016438,2]
[335215138,1723985445425,-500.0,0.00016438,2]
[335215139,1723985445435,-500.0,0.00016438,2]
[335215140,1723985445444,-500.0,0.00016438,2]
[335215141,1723985445454,-784.79,0.00016438,2]
[335215142,1723985445464,-500.0,0.00016438,2]
[335215143,1723985445474,-513.78946018,0.00016438,2]
[335215144,1723985445484,-746.29,0.00016438,2]
[335215145,1723985445493,-500.0,0.00016438,2]
[335215146,1723985445503,-500.0,0.00016438,2]
[335215147,1723985445513,-500.0,0.00016438,2]
[335215148,1723985445523,-2000.0,0.00016438,5]
[335215149,1723985445535,-2000.0,0.00016438,5]
[335215150,1723985445545,-2000.0,0.00016438,2]
[335215151,1723985445554,-1198.0,0.00016438,2]
[335215152,1723985445566,-277.63683817,0.000165,2]
[335215153,1723985445576,-500.0,0.00016712,2]
[335215154,1723985445585,-500.0,0.00016712,2]
[335215155,1723985445594,-500.0,0.00016712,2]
[335215156,1723985445603,-500.0,0.00016712,2]
[335215157,1723985445614,-500.0,0.00016712,2]
[335215158,1723985445623,-500.0,0.00016712,2]
[335215159,1723985445633,-509.52729507,0.00016712,2]
[335215160,1723985445644,-500.0,0.00016712,2]
[335215161,1723985445654,-500.0,0.00016712,2]
[335215162,1723985445664,-508.31419883,0.00016712,2]
[335215163,1723985445675,-500.0,0.00016712,2]
[335215164,1723985445686,-509.52708018,0.00016712,2]
[335215165,1723985445696,-611.62,0.00016712,2]
[335215166,1723985445707,-500.0,0.00016712,2]
[335215167,1723985445717,-500.0,0.00016712,2]
[335215168,1723985445727,-500.0,0.00016712,2]
[335215169,1723985445738,-500.0,0.00016712,2]
[335215170,1723985445749,-527.08,0.00016712,2]
[335215171,1723985445760,-500.0,0.00016712,2]
[335215172,1723985445770,-500.0,0.00016712,2]
[335215173,1723985445781,-500.0,0.00016712,2]
[335215174,1723985445792,-504.35897481,0.00016712,2]
[335215175,1723985445803,-500.0,0.00016712,2]
[335215176,1723985445814,-500.0,0.00016712,2]
[335215177,1723985445823,-500.0,0.00016712,2]
[335215178,1723985445833,-500.0,0.00016712,2]
[335215179,1723985445843,-500.0,0.00016712,2]
[335215180,1723985445852,-524.9,0.00016712,2]
[335215181,1723985445864,-500.0,0.00016712,2]
[335215182,1723985445875,-500.0,0.00016712,2]
[335215183,1723985445884,-500.0,0.00016712,2]
[335215184,1723985445894,-500.0,0.00016712,2]
[335215185,1723985445903,-511.27237691,0.00016712,2]
[335215186,1723985445913,-500.0,0.00016712,2]
[335215187,1723985445923,-500.0,0.00016712,2]
[335215188,1723985445932,-500.0,0.00016712,2]
[335215189,1723985445941,-500.0,0.00016712,2]
[335215190,1723985445950,-500.0,0.00016712,2]
[335215191,1723985445960,-509.1367831,0.00016712,2]
[335215192,1723985445969,-500.0,0.00016712,2]
[335215193,1723985445980,-500.0,0.00016712,2]
[335215194,1723985445989,-504.26190343,0.00016712,2]
[335215195,1723985445998,-500.0,0.00016712,2]